bitfinex/quotes_SOLUSD_20241029
["timestamp","ask_amount","ask_price","bid_price","bid_amount"]
[1730172506907,20.0,181.56,181.51,27.97333523]
[1730172507406,43.776884,181.6,181.51,28.17333523]
[1730172507609,43.776884,181.6,181.59,43.87958935]
[1730172507905,43.776884,181.6,181.51,27.97333523]
[1730172508095,20.0,181.66,181.51,27.97333523]
[1730172508284,43.776884,181.66,181.51,27.97333523]
[1730172509008,133.043484,181.66,181.51,27.97333523]
[1730172510199,43.776884,181.64,181.51,27.97333523]
[1730172510510,43.776884,181.62,181.51,27.97333523]
[1730172510887,43.716884,181.62,181.51,27.97333523]
[1730172512489,43.716884,181.62,181.5,52.00428927]
[1730172512490,20.0,181.6,181.5,52.00428927]
[1730172513320,20.0,181.58,181.5,52.00428927]
[1730172513824,20.0,181.56,181.5,52.00428927]
[1730172514000,20.0,181.56,181.46,57.88254364]
[1730172514510,20.0,181.54,181.46,57.78254364]
[1730172514716,20.0,181.54,181.46,57.88254364]
[1730172515515,20.0,181.54,181.46,57.78254364]
[1730172515812,20.0,181.54,181.46,57.88254364]
[1730172516027,5.5081,181.55,181.48,0.1]
[1730172516313,23.776884,181.62,181.48,0.2]
[1730172516494,5.5056,181.63,181.48,0.2]
[1730172516816,5.505,181.65,181.48,0.2]
[1730172516996,5.505,181.65,181.48,0.1]
[1730172517191,5.505,181.65,181.46,0.1]
[1730172517521,20.0,181.61,181.46,0.1]
[1730172517831,20.0,181.59,181.46,0.1]
[1730172518011,20.0,181.57,181.46,0.1]
[1730172518193,34.76759961,181.57,181.47,0.1]
[1730172518390,34.76759961,181.57,181.47,0.2]
[1730172518695,5.5078,181.56,181.47,0.2]
[1730172518896,20.0,181.55,181.47,0.2]
[1730172519618,20.0,181.55,181.47,0.1]
[1730172520117,20.0,181.53,181.48,0.1]
[1730172522420,5.5088,181.53,181.44,0.1]
[1730172522624,20.0,181.55,181.44,0.1]
[1730172522926,20.0,181.53,181.45,0.1]
[1730172523215,20.0,181.53,181.44,0.1]
[1730172523609,20.0,181.53,181.45,0.1]
[1730172523798,20.0,181.53,181.46,0.1]
[1730172523996,20.0,181.53,181.47,0.1]
[1730172524207,20.0,181.53,181.43,0.2]
[1730172524404,5.509,181.52,181.44,0.1]
[1730172524603,20.0,181.51,181.45,0.2]
[1730172524806,5.5047,181.66,181.5,0.2]
[1730172525013,5.5047,181.66,181.44,20.0]
[1730172525014,46.7905,181.66,181.49,0.1]
[1730172525323,46.7905,181.66,181.52,0.1]
[1730172525526,46.7905,181.66,181.51,0.2]
[1730172525714,46.7905,181.66,181.49,0.2]
[1730172525715,16.63,181.65,181.49,0.2]
[1730172525921,16.63,181.65,181.5,0.1]
[1730172526221,16.63,181.63,181.51,0.1]
[1730172526429,5.5053,181.64,181.54,0.1]
[1730172526727,5.5053,181.64,181.42,47.5594]
[1730172526728,5.5053,181.64,181.52,0.1]
[1730172527026,19.2687,181.64,181.54,0.1]
[1730172527524,19.2687,181.64,181.5,19.2837]
[1730172527525,5.5053,181.64,181.59,0.1]
[1730172527826,5.5053,181.64,181.59,0.2]
[1730172528206,14.76555452,181.66,181.6,0.1]
[1730172528414,13.7556,181.75,181.59,0.1]
[1730172528415,13.7556,181.75,181.65,0.1]
[1730172528628,0.1,181.77,181.6,43.776884]
[1730172528805,0.1,181.72,181.55,43.776884]
[1730172529008,33.0068,181.78,181.55,43.776884]
[1730172529009,0.1,181.73,181.55,43.776884]
[1730172529615,0.1,181.72,181.55,43.776884]
[1730172529818,5.5032,181.71,181.57,43.776884]
[1730172530329,19.2613,181.71,181.57,43.776884]
[1730172531126,20.0,181.66,181.51,13.7726]
[1730172531323,35.23720462,181.66,181.51,19.2819]
[1730172531820,20.0,181.64,181.51,13.7726]
[1730172532527,20.0,181.64,181.52,20.0]
[1730172533028,25.505,181.65,181.53,23.776884]
[1730172534324,39.3677,181.65,181.53,23.776884]
[1730172534636,20.0,181.63,181.45,0.1]
[1730172534825,5.506,181.62,181.46,19.2879]
[1730172535007,20.0,181.61,181.46,19.2879]
[1730172535715,20.0,181.61,181.47,43.776884]
[1730172536829,5.5056,181.63,181.48,5.5102]
[1730172537127,20.0,181.62,181.49,23.776884]
[1730172538720,5.5063,181.61,181.49,23.776884]
[1730172538925,20.0,181.6,181.49,23.776884]
[1730172539831,5.5069,181.59,181.49,23.776884]
[1730172540927,20.0,181.58,181.43,0.1]
[1730172541139,19.2741,181.59,181.45,0.1]
[1730172541504,19.2741,181.59,181.44,0.1]
[1730172541723,19.2741,181.59,181.45,0.1]
[1730172541932,20.0,181.62,181.46,19.2879]
[1730172542114,20.0,181.62,181.47,23.776884]
[1730172543520,5.5063,181.61,181.48,5.5102]
[1730172543717,5.5063,181.61,181.49,23.776884]
[1730172544531,19.272,181.61,181.49,23.776884]
[1730172546413,10.62718348,181.6,181.48,19.2858]
[1730172546715,10.62718348,181.59,181.48,19.2858]
[1730172546916,10.62718348,181.58,181.48,19.2858]
[1730172547136,5.5078,181.56,181.49,29.286584]
[1730172547432,4.08737826,181.55,181.49,29.286584]
[1730172547637,4.08737826,181.54,181.49,29.286584]
[1730172547825,5.5074,181.58,181.49,43.061384]
[1730172548012,10.62653419,181.57,181.49,43.061384]
[1730172548717,10.62653419,181.57,181.45,13.7775]
[1730172549235,5.5081,181.55,181.43,20.0]
[1730172549846,5.5081,181.55,181.42,20.0]
[1730172550340,5.5081,181.55,181.42,20.1]
[1730172550526,13.768,181.58,181.42,20.0]
[1730172550721,13.7654,181.62,181.48,0.1]
[1730172550924,10.62795514,181.61,181.48,0.1]
[1730172551126,4.08770537,181.6,181.48,0.1]
[1730172551330,4.08770537,181.59,181.45,0.1]
[1730172551531,13.7654,181.62,181.46,0.1]
[1730172551743,5.5066,181.6,181.47,19.2868]
[1730172551931,4.08760744,181.59,181.48,43.776884]
[1730172552119,4.08760744,181.58,181.48,43.776884]
[1730172552320,5.5066,181.6,181.48,43.876884]
[1730172552817,6.81263667,181.7,181.54,0.1]
[1730172553051,16.13419581,181.69,181.55,43.776884]
[1730172553223,4.08861377,181.68,181.55,43.776884]
[1730172553723,5.5044,181.67,181.57,23.776884]
[1730172553937,4.08809652,181.66,181.55,23.776884]
[1730172554137,4.08809652,181.66,181.48,19.36152995]
[1730172554138,19.2656,181.67,181.51,43.776884]
[1730172554347,4.08692091,181.66,181.51,43.776884]
[1730172554534,19.2656,181.67,181.51,23.776884]
[1730172554836,24.08659533,181.66,181.51,23.776884]
[1730172555044,24.08659533,181.65,181.51,23.776884]
[1730172555222,39.2687,181.64,181.51,13.7733]
[1730172555422,24.08567901,181.63,181.51,13.7733]
[1730172555617,20.0,181.63,181.51,13.7733]
[1730172556325,5.506,181.62,181.46,19.2879]
[1730172556535,19.271,181.62,181.46,19.2879]
[1730172556925,19.271,181.62,181.46,19.3879]
[1730172557431,20.0,181.61,181.46,13.7771]
[1730172557747,20.0,181.61,181.47,23.776884]
[1730172558418,23.35750926,181.6,181.47,29.287184]
[1730172558623,19.2731,181.6,181.47,29.287184]
[1730172558825,46.8061,181.6,181.43,25.5116]
[1730172559139,24.08245512,181.59,181.43,5.5116]
[1730172559450,20.0,181.59,181.43,5.5116]
[1730172559748,4.08182407,181.58,181.43,5.5116]
[1730172559927,4.08182407,181.57,181.43,5.5116]
[1730172560251,4.08196303,181.56,181.43,13.7794]
[1730172560429,4.08196303,181.55,181.44,23.776884]
[1730172560749,19.2752,181.58,181.44,23.776884]
[1730172560943,4.08180678,181.57,181.44,23.776884]
[1730172561133,5.5081,181.55,181.44,23.776884]
[1730172561335,4.08180678,181.54,181.44,23.776884]
[1730172561651,4.08180678,181.53,181.44,23.776884]
[1730172561853,19.2784,181.55,181.43,13.7794]
[1730172562163,4.08232219,181.54,181.43,13.7794]
[1730172562330,4.08232219,181.54,181.38,2.20651092]
[1730172562331,4.08232219,181.53,181.38,2.20651092]
[1730172562532,4.08232219,181.52,181.38,5.5132]
[1730172562738,4.08232219,181.51,181.38,6.0454167]
[1730172562941,4.08232219,181.5,181.38,6.0454167]
[1730172563138,4.08232219,181.49,181.38,19.8286167]
[1730172563452,20.0,181.51,181.38,0.5322167]
[1730172563628,4.08499742,181.5,181.38,0.5322167]
[1730172563949,4.08499742,181.49,181.38,19.8285167]
[1730172564122,20.0,181.51,181.38,19.8285167]
[1730172564323,4.08442315,181.5,181.38,0.5322167]
[1730172564550,4.08442315,181.49,181.38,0.5322167]
[1730172564782,20.0,181.48,181.38,0.5322167]
[1730172564945,4.08442315,181.47,181.38,0.5322167]
[1730172565146,5.5108,181.46,181.38,0.5322167]
[1730172565346,4.08442315,181.45,181.38,0.5322167]
[1730172565551,5.5108,181.46,181.38,0.5322167]
[1730172565755,4.08216671,181.45,181.38,0.5322167]
[1730172565955,5.5108,181.46,181.38,0.5322167]
[1730172573970,19.2868,181.47,181.38,0.5322167]
[1730172577168,0.1,181.44,181.28,2.207311]
[1730172577371,4.07113242,181.43,181.27,0.7222133]
[1730172577667,4.07113242,181.42,181.27,0.7222133]
[1730172577872,0.1,181.43,181.27,0.7222133]
[1730172578071,4.06978982,181.42,181.27,0.7222133]
[1730172578268,0.1,181.43,181.27,0.7222133]
[1730172578572,20.0,181.42,181.27,0.7222133]
[1730172579367,20.0,181.42,181.28,23.776884]
[1730172580779,5.5123,181.41,181.29,5.516]
[1730172580963,19.2932,181.41,181.3,23.776884]
[1730172582252,19.2932,181.41,181.27,14.5137133]
[1730172582463,19.2932,181.41,181.28,23.776884]
[1730172582778,20.0,181.4,181.28,23.776884]
[1730172583568,5.5129,181.39,181.28,23.776884]
[1730172583960,19.2953,181.39,181.28,23.776884]
[1730172585061,5.5135,181.37,181.28,23.776884]
[1730172591468,5.5135,181.37,181.28,29.293084]
[1730172592784,5.5135,181.37,181.28,43.083884]
[1730172594391,20.0,181.41,181.28,43.083884]
[1730172594684,39.2932,181.41,181.28,43.083884]
[1730172599387,5.5123,181.41,181.28,43.083884]
[1730172599590,5.5123,181.41,181.28,70.665484]
[1730172599891,5.5123,181.41,181.27,0.8222133]
[1730172599892,20.0,181.4,181.27,0.7222133]
[1730172600576,20.0,181.4,181.27,20.0301133]
[1730172601492,20.0,181.4,181.27,14.5137133]
[1730172601679,20.0,181.38,181.27,14.5137133]
[1730172602576,20.0,181.36,181.27,20.0303133]
[1730172602886,20.0,181.36,181.27,14.5137133]
[1730172603189,20.0,181.36,181.27,0.7222133]
[1730172603616,5.74017863,181.41,181.28,23.776884]
[1730172603977,11.25247863,181.41,181.28,23.776884]
[1730172604298,5.74017863,181.41,181.28,23.876884]
[1730172604472,5.5115,181.44,181.3,0.1]
[1730172604680,5.511,181.46,181.3,23.876884]
[1730172605183,5.5102,181.48,181.31,0.1]
[1730172605390,5.5102,181.48,181.3,23.776884]
[1730172605581,5.5102,181.48,181.3,23.876884]
[1730172605896,5.5102,181.48,181.32,0.1]
[1730172606304,4.07604737,181.47,181.33,19.3018]
[1730172606597,5.5102,181.48,181.34,23.776884]
[1730172606774,5.5102,181.48,181.34,23.876884]
[1730172607192,5.5102,181.48,181.34,23.776884]
[1730172607397,5.5102,181.48,181.34,23.876884]
[1730172607589,5.73779305,181.54,181.34,23.976884]
[1730172607590,5.5087,181.53,181.34,23.976884]
[1730172607791,4.07968909,181.52,181.36,0.1]
[1730172607999,4.07968909,181.51,181.38,0.1]
[1730172608300,5.509,181.52,181.4,23.776884]
[1730172609302,25.5087,181.53,181.41,19.2932]
[1730172609597,4.08092008,181.52,181.42,23.776884]
[1730172609804,4.08135752,181.51,181.41,19.2932]
[1730172610097,4.08135752,181.5,181.41,19.2932]
[1730172610288,4.08135752,181.49,181.41,19.2932]
[1730172610496,20.0,181.51,181.41,19.2932]
[1730172610799,4.08181026,181.5,181.41,19.2932]
[1730172611000,9.59171026,181.49,181.38,23.776884]
[1730172611185,5.5099,181.49,181.38,23.776884]
[1730172611987,25.509,181.52,181.39,19.2953]
[1730172612188,4.07985063,181.51,181.4,23.776884]
[1730172612374,4.07985063,181.5,181.4,23.776884]
[1730172612578,25.509,181.52,181.39,19.2953]
[1730172612579,4.07985063,181.49,181.39,19.2953]
[1730172612778,39.2815,181.52,181.39,19.2953]
[1730172612980,4.07899479,181.51,181.39,19.2953]
[1730172613180,4.07899479,181.5,181.39,19.2953]
[1730172613387,39.2815,181.52,181.39,19.2953]
[1730172613701,20.0,181.5,181.34,23.776884]
[1730172613883,4.07832683,181.49,181.34,23.776884]
[1730172614077,4.07832683,181.48,181.34,23.776884]
[1730172614280,20.0,181.51,181.34,23.776884]
[1730172614587,20.0,181.49,181.34,23.776884]
[1730172614778,4.07812093,181.48,181.34,23.776884]
[1730172614978,4.07812093,181.47,181.34,23.776884]
[1730172615204,20.0,181.51,181.34,23.776884]
[1730172615385,10.59618736,181.5,181.34,23.776884]
[1730172615711,29.58535668,181.49,181.36,23.776884]
[1730172615885,4.07545668,181.48,181.36,23.776884]
[1730172616084,4.07545668,181.47,181.36,23.776884]
[1730172616293,25.5099,181.49,181.36,23.776884]
[1730172616494,4.07490468,181.48,181.36,23.776884]
[1730172616783,5.5105,181.47,181.38,23.776884]
[1730172616984,9.5854135,181.47,181.38,23.776884]
[1730172617195,5.5105,181.47,181.38,23.776884]
[1730172617602,5.5096,181.5,181.39,5.5129]
[1730172617792,24.0759334,181.49,181.39,5.5129]
[1730172617993,4.0759334,181.48,181.39,5.5129]
[1730172618689,5.5105,181.47,181.39,5.5129]
[1730172619879,25.5097,181.5,181.4,23.776884]
[1730172620101,4.07553194,181.49,181.4,23.776884]
[1730172620297,5.5097,181.5,181.4,23.776884]
[1730172620609,4.07539445,181.49,181.4,23.776884]
[1730172620794,5.5097,181.5,181.4,23.776884]
[1730172621104,19.2838,181.5,181.35,13.7851]
[1730172621300,24.07513648,181.49,181.36,23.776884]
[1730172621510,24.07513648,181.48,181.36,23.776884]
[1730172621805,24.07513648,181.47,181.36,23.776884]
[1730172622097,5.5108,181.46,181.36,29.290484]
[1730172622300,4.07414087,181.45,181.3,5.5157]
[1730172622502,20.0,181.45,181.3,5.5157]
[1730172623081,20.0,181.44,181.3,5.5157]
[1730172623289,20.0,181.44,181.32,13.7871]
[1730172623497,5.5117,181.43,181.32,13.7871]
[1730172624095,5.5117,181.43,181.33,23.776884]
[1730172625199,25.5099,181.49,181.33,23.776884]
[1730172625397,39.2847,181.49,181.33,23.776884]
[1730172625594,39.2847,181.49,181.35,23.776884]
[1730172625996,5.74022171,181.52,181.35,23.876884]
[1730172626410,5.74022171,181.52,181.35,26.08398143]
[1730172626614,5.74022171,181.52,181.36,0.1]
[1730172627190,11.24922171,181.52,181.37,46.8653]
[1730172627399,11.24922171,181.52,181.38,23.776884]
[1730172628389,11.24922171,181.52,181.4,23.776884]
[1730172628618,5.509,181.52,181.4,23.776884]
[1730172629410,6.4525,181.55,181.4,23.776884]
[1730172629617,25.5084,181.54,181.42,23.776884]
[1730172629994,11.24671752,181.57,181.42,23.776884]
[1730172631212,11.24671752,181.57,181.44,23.776884]
[1730172631391,20.0,181.56,181.44,23.776884]
[1730172632514,5.5081,181.55,181.46,23.776884]
[1730172633206,5.5066,181.6,181.46,23.776884]
[1730172633414,11.24158005,181.6,181.46,23.776884]
[1730172634311,20.0,181.57,181.47,19.2868]
[1730172634606,20.0,181.57,181.48,23.776884]
[1730172635630,25.5069,181.59,181.47,13.7763]
[1730172635797,25.5069,181.59,181.47,19.2867]
[1730172635798,39.2741,181.59,181.47,19.2867]
[1730172637118,39.2741,181.59,181.42,23.776884]
[1730172638217,5.5069,181.59,181.44,23.776884]
[1730172639500,5.5069,181.59,181.46,23.776884]
[1730172640825,5.5069,181.59,181.48,23.776884]
[1730172642126,5.5069,181.59,181.5,23.776884]
[1730172644431,5.5069,181.59,181.49,23.776884]
[1730172646425,5.5069,181.59,181.49,29.286584]
[1730172653518,5.73498005,181.6,181.49,43.061384]
[1730172653716,5.5053,181.64,181.49,70.611084]
[1730172654431,5.5053,181.64,181.49,19.2845]
[1730172654432,19.2687,181.64,181.49,19.2845]
[1730172654811,20.0,181.63,181.49,19.2845]
[1730172655238,19.271,181.62,181.47,27.5527]
[1730172655831,19.271,181.62,181.48,23.776884]
[1730172656836,19.271,181.62,181.5,23.776884]
[1730172659226,19.271,181.62,181.5,43.060484]
[1730172660320,13.765,181.62,181.5,43.060484]
[1730172662720,5.5053,181.64,181.5,43.060484]
[1730172663123,5.5053,181.64,181.5,43.160484]
[1730172663637,5.5053,181.64,181.5,70.708684]
[1730172664121,5.5053,181.64,181.51,0.1]
[1730172664637,5.73290637,181.65,181.54,23.876884]
[1730172664931,5.5038,181.69,181.54,23.876884]
[1730172665137,5.73319279,181.69,181.56,0.1]
[1730172665315,6.0328,181.76,181.59,0.1]
[1730172665511,5.5014,181.77,181.6,0.1]
[1730172665817,5.5014,181.77,181.6,23.876884]
[1730172666225,5.5014,181.77,181.61,0.1]
[1730172666535,5.5014,181.77,181.6,23.876884]
[1730172666536,5.5014,181.77,181.64,23.776884]
[1730172666742,19.2524,181.8,181.65,19.2677]
[1730172667039,19.2524,181.8,181.66,23.776884]
[1730172667743,5.5011,181.78,181.67,5.5044]
[1730172667928,20.0,181.77,181.63,6.5033]
[1730172668130,20.0,181.77,181.61,13.7656]
[1730172668922,20.0,181.77,181.62,13.765]
[1730172669439,5.5011,181.78,181.63,23.776884]
[1730172669744,39.26587149,181.81,181.63,23.776884]
[1730172669937,19.2518,181.8,181.63,23.776884]
[1730172670124,19.2518,181.8,181.58,11.09740729]
[1730172670125,46.7545,181.8,181.58,6.486]
[1730172670332,74.4572,181.8,181.59,5.5068]
[1730172670660,20.1,181.79,181.59,5.5068]
[1730172671247,23.776884,181.78,181.59,5.5068]
[1730172671747,20.0,181.75,181.6,23.776884]
[1730172673333,5.5023,181.74,181.62,23.776884]
[1730172673936,5.5005,181.8,181.65,0.1]
[1730172675125,19.4755576,181.84,181.66,19.2666]
[1730172675350,20.0,181.83,181.67,23.776884]
[1730172676244,19.2497,181.82,181.69,23.776884]
[1730172677232,13.7498,181.82,181.7,5.5035]
[1730172677450,13.7498,181.82,181.71,23.776884]
[1730172677654,5.4996,181.83,181.71,23.776884]
[1730172677947,5.4996,181.83,181.72,6.389]
[1730172678127,5.4996,181.83,181.73,23.776884]
[1730172679334,19.247,181.85,181.72,23.776884]
[1730172680056,5.499,181.85,181.72,23.776884]
[1730172680449,5.499,181.85,181.72,24.87690295]
[1730172680766,5.499,181.85,181.72,23.876884]
[1730172681361,5.499,181.85,181.74,23.776884]
[1730172682157,5.7223799,181.86,181.75,0.1]
[1730172682363,5.7223799,181.86,181.74,23.876884]
[1730172682540,5.7223799,181.86,181.74,23.776884]
[1730172683032,5.7223799,181.86,181.75,19.2571]
[1730172683237,5.7223799,181.86,181.76,23.776884]
[1730172684051,5.7223799,181.86,181.76,24.87655918]
[1730172684256,0.2234799,181.86,181.76,23.876884]
[1730172684464,0.2234799,181.86,181.77,0.1]
[1730172685063,0.2234799,181.86,181.76,24.87635861]
[1730172685367,0.2234799,181.86,181.78,23.776884]
[1730172686356,0.2234799,181.86,181.8,23.776884]
[1730172686557,0.2234799,181.86,181.81,1.09947786]
[1730172686764,0.2234799,181.86,181.82,23.776884]
[1730172686955,0.2234799,181.86,181.81,23.776884]
[1730172688371,0.2234799,181.86,181.81,29.276884]
[1730172689172,0.2234799,181.86,181.81,43.027484]
[1730172693677,0.2234799,181.86,181.77,13.7531]
[1730172693678,5.7222799,181.86,181.77,13.7531]
[1730172694963,5.7222799,181.86,181.78,23.776884]
[1730172697760,5.7222799,181.86,181.78,29.277784]
[1730172704377,5.7222799,181.86,181.78,23.776884]
[1730172704689,19.4690799,181.86,181.78,23.776884]
[1730172704882,5.7222799,181.86,181.78,23.776884]
[1730172705086,5.499,181.85,181.78,45.153335]
[1730172705395,0.2234799,181.86,181.78,45.153335]
[1730172705696,5.7221799,181.86,181.78,45.153335]
[1730172709296,5.7221799,181.86,181.78,43.030784]
[1730172709797,0.2234799,181.86,181.78,43.030784]
[1730172710208,0.2234799,181.86,181.78,71.63602703]
[1730172710497,0.2234799,181.86,181.78,70.536484]
[1730172710695,5.7222799,181.86,181.78,37.529684]
[1730172710905,5.7222799,181.86,181.78,43.030784]
[1730172716197,5.7222799,181.86,181.7,6.427]
[1730172716396,5.7222799,181.86,181.71,49.3613]
[1730172717704,5.7222799,181.86,181.74,23.776884]
[1730172718811,5.7222799,181.86,181.75,19.2571]
[1730172719111,5.7222799,181.86,181.76,23.776884]
[1730172719995,5.7222799,181.86,181.78,23.776884]
[1730172721123,5.7222799,181.86,181.8,23.776884]
[1730172721695,5.7222799,181.86,181.72,46.7751]
[1730172721919,5.7222799,181.86,181.73,23.776884]
[1730172722818,5.7222799,181.86,181.75,23.776884]
[1730172724302,5.7222799,181.86,181.77,23.776884]
[1730172725023,19.4690799,181.86,181.77,23.776884]
[1730172726020,5.7222799,181.86,181.77,23.776884]
[1730172726207,6.3581,181.85,181.71,19.2613]
[1730172727518,5.4993,181.84,181.73,19.2592]
[1730172727904,5.4993,181.84,181.74,23.776884]
[1730172728512,5.4993,181.84,181.76,23.776884]
[1730172729013,5.7221799,181.86,181.76,23.776884]
[1730172729222,0.2234799,181.86,181.76,23.776884]
[1730172729404,5.7221799,181.86,181.76,23.776884]
[1730172729929,0.2234799,181.86,181.76,23.776884]
[1730172730136,5.7221799,181.86,181.76,23.776884]
[1730172730544,5.7221799,181.86,181.77,19.255]
[1730172730837,5.7221799,181.86,181.78,23.776884]
[1730172731725,5.7221799,181.86,181.77,19.255]
[1730172731726,5.7221799,181.86,181.8,23.776884]
[1730172732632,5.7221799,181.86,181.79,19.2529]
[1730172733027,5.7221799,181.86,181.75,29.7058231]
[1730172733222,5.7221799,181.86,181.77,23.776884]
[1730172734227,5.7221799,181.86,181.78,5.5011]
[1730172734429,5.7221799,181.86,181.79,23.776884]
[1730172736027,5.7221799,181.86,181.79,29.277584]
[1730172738023,5.7221799,181.86,181.74,13.7553]
[1730172738240,5.7221799,181.86,181.75,2.20241276]
[1730172738426,5.7221799,181.86,181.76,2.20241276]
[1730172738631,5.7221799,181.86,181.75,2.20241272]
[1730172738841,5.7221799,181.86,181.76,2.20241272]
[1730172739040,5.7221799,181.86,181.75,2.20241272]
[1730172739241,5.7221799,181.86,181.76,2.20241272]
[1730172739428,5.7221799,181.86,181.77,31.48059672]
[1730172739637,5.7221799,181.86,181.77,29.278184]
[1730172741545,5.7221799,181.86,181.79,23.776884]
[1730172742743,5.7221799,181.86,181.79,29.277384]
[1730172743671,5.7221799,181.86,181.78,13.7528]
[1730172744024,5.7221799,181.86,181.78,19.2539]
[1730172744350,19.4689799,181.86,181.74,43.034284]
[1730172744530,19.4689799,181.86,181.76,23.776884]
[1730172744731,19.4689799,181.86,181.77,2.20242195]
[1730172744936,19.4689799,181.86,181.76,23.776884]
[1730172745143,19.4689799,181.86,181.77,2.20242318]
[1730172745454,19.4689799,181.86,181.78,2.20242318]
[1730172745654,19.4689799,181.86,181.77,5.5013]
[1730172745845,19.4689799,181.86,181.78,2.20240418]
[1730172746045,19.4689799,181.86,181.77,5.5013]
[1730172746364,19.4689799,181.86,181.78,2.20242101]
[1730172746668,19.4689799,181.86,181.77,23.776884]
[1730172746866,19.4689799,181.86,181.78,2.20242263]
[1730172747042,19.4689799,181.86,181.77,23.776884]
[1730172747364,19.4689799,181.86,181.78,2.20241195]
[1730172747562,19.4689799,181.86,181.77,23.776884]
[1730172747763,19.4689799,181.86,181.78,2.20241168]
[1730172748067,19.4689799,181.86,181.77,43.031684]
[1730172748361,5.7221799,181.86,181.78,2.20241388]
[1730172748565,0.2234799,181.86,181.79,25.97916111]
[1730172748762,0.2234799,181.86,181.78,23.776884]
[1730172749061,5.7221799,181.86,181.8,23.776884]
[1730172749251,0.2234799,181.86,181.78,23.776884]
[1730172749560,5.7221799,181.86,181.8,23.776884]
[1730172749765,5.7221799,181.86,181.8,29.277284]
[1730172750766,5.7221799,181.86,181.8,43.028584]
[1730172753164,5.7221799,181.86,181.8,37.528184]
[1730172754365,0.2234799,181.86,181.8,70.531384]
[1730172754568,0.2234799,181.86,181.82,23.776884]
[1730172754969,0.2234799,181.86,181.83,2.20187342]
[1730172755268,0.2234799,181.86,181.84,2.20187342]
[1730172755459,0.2234799,181.86,181.82,23.776884]
[1730172755771,0.2234799,181.86,181.84,23.776884]
[1730172756266,0.2234799,181.86,181.85,29.275884]
[1730172761271,5.4962,181.95,181.86,23.776884]
[1730172762572,5.4957,181.96,181.87,19.2444]
[1730172762771,5.4957,181.96,181.88,23.776884]
[1730172762954,5.4957,181.96,181.87,19.2444]
[1730172763471,5.4957,181.96,181.88,23.776884]
[1730172763855,5.72633703,181.97,181.88,23.776884]
[1730172764081,6.5167,181.98,181.88,23.776884]
[1730172764554,5.4956,181.97,181.9,23.776884]
[1730172765472,5.4956,181.97,181.91,5.4972]
[1730172766162,5.4956,181.97,181.9,29.274284]
[1730172766367,5.4956,181.97,181.83,23.776884]
[1730172766676,5.4956,181.97,181.84,30.0]
[1730172767564,5.4956,181.97,181.85,20.34571683]
[1730172767758,5.4956,181.97,181.86,23.776884]
[1730172769058,5.4956,181.97,181.88,23.776884]
[1730172769268,6.5167,181.98,181.88,23.776884]
[1730172769475,5.4943,182.01,181.88,23.776884]
[1730172771254,5.4939,182.02,181.89,19.2423]
[1730172771456,5.4939,182.02,181.9,23.776884]
[1730172771976,19.2286,182.02,181.9,23.776884]
[1730172773054,46.6981,182.02,181.9,23.776884]
[1730172773660,20.0,182.01,181.88,19.2434]
[1730172774673,46.6981,182.02,181.84,19.2476]
[1730172774877,20.0,182.01,181.85,23.776884]
[1730172775961,19.2307,182.0,181.87,23.776884]
[1730172776878,46.7032,182.0,181.87,29.275184]
[1730172777460,20.0,181.99,181.83,4.51140729]
[1730172777662,20.0,181.99,181.83,19.2486]
[1730172778695,46.7083,181.98,181.83,13.749]
[1730172778874,46.7083,181.98,181.84,23.776884]
[1730172779769,46.7083,181.98,181.84,29.276084]
[1730172781191,46.7083,181.98,181.84,23.776884]